fUST/lending_fUST_20250515
["ID","MTS","AMOUNT","RATE_DAILY","PERIOD"]
[361122668,1747287051807,-506.16981647,0.00024657,2]
[361122669,1747287051816,-404.58138656,0.00024657,2]
[361122670,1747287051826,-403.04494381,0.00024657,2]
[361122671,1747287051835,-450.0,0.00024657,2]
[361122672,1747287051845,-450.0,0.00024657,2]
[361122673,1747287051854,-450.0,0.00024657,2]
[361122674,1747287051864,-450.0,0.00024657,2]
[361122675,1747287051874,-450.0,0.00024657,2]
[361122676,1747287051883,-450.0,0.00024657,2]
[361122677,1747287051893,-329.05066669,0.00024657,2]
[361122678,1747287051902,-400.73261571,0.00024657,2]
[361122679,1747287051911,-407.06728176,0.00024657,2]
[361122680,1747287051921,-450.0,0.00024657,2]
[361122681,1747287051930,-450.0,0.00024657,2]
[361122682,1747287051940,-581.19450872,0.00024657,2]
[361122683,1747287051949,-450.0,0.00024657,2]
[361122684,1747287051959,-400.23931876,0.00024657,2]
[361122685,1747287051968,-450.0,0.00024657,2]
[361122686,1747287051977,-450.0,0.00024657,2]
[361122687,1747287051986,-1000.0,0.00024657,2]
[361122688,1747287051996,-403.28886557,0.00024657,2]
[361122689,1747287052006,-450.0,0.00024657,2]
[361122690,1747287052016,-450.0,0.00024657,2]
[361122691,1747287052026,-450.0,0.00024657,2]
[361122692,1747287052035,-450.0,0.00024657,2]
[361122693,1747287052044,-450.0,0.00024657,2]
[361122694,1747287052054,-450.0,0.00024657,2]
[361122695,1747287052065,-450.0,0.00024657,2]
[361122696,1747287052074,-450.0,0.00024657,2]
[361122697,1747287052083,-450.0,0.00024657,2]
[361122698,1747287052093,-450.0,0.00024657,2]
[361122699,1747287052102,-450.0,0.00024657,2]
[361122700,1747287052111,-403.90569631,0.00024657,2]
[361122701,1747287052120,-450.0,0.00024657,2]
[361122702,1747287052130,-450.0,0.00024657,2]
[361122703,1747287052140,-450.0,0.00024657,2]
[361122704,1747287052149,-450.0,0.00024657,2]
[361122705,1747287052159,-450.0,0.00024657,2]
[361122706,1747287052168,-450.0,0.00024657,2]
[361122707,1747287052178,-450.0,0.00024657,2]
[361122708,1747287052187,-400.5651922,0.00024657,2]
[361122709,1747287052197,-403.37145403,0.00024657,2]
[361122710,1747287052207,-450.0,0.00024657,2]
[361122711,1747287052216,-450.0,0.00024657,2]
[361122712,1747287052225,-406.71078433,0.00024657,2]
[361122713,1747287052234,-400.68142523,0.00024657,2]
[361122714,1747287052244,-450.0,0.00024657,2]
[361122715,1747287052253,-450.0,0.00024657,2]
[361122716,1747287052263,-343.08147514,0.00024657,2]
[361122717,1747287052272,-450.0,0.00024657,2]
[361122718,1747287052282,-450.0,0.00024657,2]
[361122719,1747287052291,-405.29281987,0.00024657,2]
[361122720,1747287052300,-405.87993981,0.00024657,2]
[361122721,1747287052309,-450.0,0.00024657,2]
[361122722,1747287052318,-450.0,0.00024657,2]
[361122723,1747287052328,-402.11590032,0.00024657,2]
[361122724,1747287052337,-400.84757874,0.00024657,2]
[361122725,1747287052348,-450.0,0.00024657,2]
[361122726,1747287052358,-519.34525243,0.00024657,2]
[361122727,1747287052367,-450.0,0.00024657,2]
[361122728,1747287052376,-402.00372499,0.00024657,2]
[361122729,1747287052386,-450.0,0.00024657,2]
[361122730,1747287052395,-450.0,0.00024657,2]
[361122731,1747287052404,-450.0,0.00024657,2]
[361122732,1747287052414,-400.0,0.00024657,2]
[361122733,1747287052423,-401.08168652,0.00024657,2]
[361122734,1747287052433,-450.0,0.00024657,2]
[361122735,1747287052443,-477.40584988,0.00024657,2]
[361122736,1747287052452,-450.0,0.00024657,2]
[361122737,1747287052461,-450.0,0.00024657,2]
[361122738,1747287052471,-450.0,0.00024657,2]
[361122739,1747287052481,-403.43261451,0.00024657,2]
[361122740,1747287052490,-450.0,0.00024657,2]
[361122741,1747287052500,-450.0,0.00024657,2]
[361122742,1747287052510,-502.47863682,0.00024657,2]
[361122743,1747287052519,-403.16081875,0.00024657,2]
[361122744,1747287052528,-402.09790933,0.00024657,2]
[361122745,1747287052538,-450.0,0.00024657,2]
[361122746,1747287052547,-401.13021759,0.00024657,2]
[361122747,1747287052558,-400.83568197,0.00024657,2]
[361122748,1747287052567,-450.0,0.00024657,2]
[361122749,1747287052576,-576.73581149,0.00024657,2]
[361122750,1747287052584,-403.6660509,0.00024657,2]
[361122751,1747287052594,-521.42349721,0.00024657,2]
[361122752,1747287052604,-406.90013572,0.00024657,2]
[361122753,1747287052613,-450.0,0.00024657,2]
[361122754,1747287052622,-406.10741768,0.00024657,2]
[361122755,1747287052632,-404.57689726,0.00024657,2]
[361122756,1747287052641,-404.43028542,0.00024657,2]
[361122757,1747287052651,-450.0,0.00024657,2]
[361122758,1747287052660,-406.14367649,0.00024657,2]
[361122759,1747287052670,-450.0,0.00024657,2]
[361122760,1747287052679,-450.0,0.00024657,2]
[361122761,1747287052689,-450.0,0.00024657,2]
[361122762,1747287052698,-410.67628353,0.00024657,2]
[361122763,1747287052707,-257.30267594,0.00024657,2]
[361122764,1747287052716,-450.0,0.00024657,2]
[361122765,1747287052726,-450.0,0.00024657,2]
[361122766,1747287052735,-411.18144406,0.00024657,2]
[361122767,1747287052744,-450.0,0.00024657,2]
[361122768,1747287052754,-450.0,0.00024657,2]
[361122769,1747287052763,-403.93995056,0.00024657,2]
[361122770,1747287052772,-402.37498567,0.00024657,2]
[361122771,1747287052782,-450.0,0.00024657,2]
[361122772,1747287052791,-450.0,0.00024657,2]
[361122773,1747287052801,-450.0,0.00024657,2]
[361122774,1747287052810,-450.0,0.00024657,2]
[361122775,1747287052917,-450.0,0.00024657,2]
[361122776,1747287052927,-450.0,0.00024657,2]
[361122777,1747287052937,-400.92719641,0.00024657,2]
[361122778,1747287052947,-402.45328149,0.00024657,2]
[361122779,1747287052957,-450.0,0.00024657,2]
[361122780,1747287052969,-450.0,0.00024657,2]
[361122781,1747287052978,-420.34127567,0.00024657,2]
[361122782,1747287052987,-450.0,0.00024657,2]
[361122783,1747287052997,-450.0,0.00024657,2]
[361122784,1747287053007,-450.0,0.00024657,2]
[361122785,1747287053017,-450.0,0.00024657,2]
[361122786,1747287053026,-400.65036234,0.00024657,2]
[361122787,1747287053036,-450.0,0.00024657,2]
[361122788,1747287053046,-450.0,0.00024657,2]
[361122789,1747287053055,-450.0,0.00024657,2]
[361122790,1747287053064,-402.00609856,0.00024657,2]
[361122791,1747287053074,-450.0,0.00024657,2]
[361122792,1747287053084,-450.0,0.00024657,2]
[361122793,1747287053099,-450.0,0.00024657,2]
[361122794,1747287053108,-450.0,0.00024657,2]
[361122795,1747287053118,-450.0,0.00024657,2]
[361122796,1747287053127,-450.0,0.00024657,2]
[361122797,1747287053138,-400.19594306,0.00024657,2]
[361122798,1747287053147,-401.10725529,0.00024657,2]
[361122799,1747287053157,-450.0,0.00024657,2]
[361122800,1747287053167,-450.0,0.00024657,2]
[361122801,1747287053176,-450.0,0.00024657,2]
[361122802,1747287053185,-450.0,0.00024657,2]
[361122803,1747287053195,-450.0,0.00024657,2]
[361122804,1747287053205,-401.58085685,0.00024657,2]
[361122805,1747287053214,-403.36212656,0.00024657,2]
[361122806,1747287053224,-450.0,0.00024657,2]
[361122807,1747287053233,-450.0,0.00024657,2]
[361122808,1747287053244,-450.0,0.00024657,2]
[361122809,1747287053256,-450.0,0.00024657,2]
[361122810,1747287053265,-450.0,0.00024657,2]
[361122811,1747287053275,-450.0,0.00024657,2]
[361122812,1747287053284,-450.0,0.00024657,2]
[361122813,1747287053294,-450.0,0.00024657,2]
[361122814,1747287053304,-227.63614256,0.00024657,2]
[361122815,1747287053313,-450.0,0.00024657,2]
[361122816,1747287053322,-450.0,0.00024657,2]
[361122817,1747287053332,-450.0,0.00024657,2]
[361122818,1747287053341,-450.0,0.00024657,2]
[361122819,1747287053351,-450.0,0.00024657,2]
[361122820,1747287053360,-450.0,0.00024657,2]
[361122821,1747287053369,-450.0,0.00024657,2]
[361122822,1747287053379,-450.0,0.00024657,2]
[361122823,1747287053388,-450.0,0.00024657,2]
[361122824,1747287053398,-450.0,0.00024657,2]
[361122825,1747287053407,-450.0,0.00024657,2]
[361122826,1747287053417,-405.24912084,0.00024657,2]
[361122827,1747287053426,-450.0,0.00024657,2]
[361122828,1747287053435,-450.0,0.00024657,2]
[361122829,1747287053445,-450.0,0.00024657,2]
[361122830,1747287053455,-450.0,0.00024657,2]
[361122831,1747287053464,-450.0,0.00024657,2]
[361122832,1747287053474,-450.0,0.00024657,2]
[361122833,1747287053483,-450.0,0.00024657,2]
[361122834,1747287053493,-450.0,0.00024657,2]
[361122835,1747287053502,-450.0,0.00024657,2]
[361122836,1747287053512,-450.0,0.00024657,2]
[361122837,1747287053522,-450.0,0.00024657,2]
[361122838,1747287053532,-450.0,0.00024657,2]
[361122839,1747287053541,-450.0,0.00024657,2]
[361122840,1747287053551,-450.0,0.00024657,2]
[361122841,1747287053560,-450.0,0.00024657,2]
[361122842,1747287053570,-450.0,0.00024657,2]
[361122843,1747287053579,-450.0,0.00024657,2]
[361122844,1747287053590,-450.0,0.00024657,2]
[361122845,1747287053599,-450.0,0.00024657,2]
[361122846,1747287053608,-450.0,0.00024657,2]
[361122847,1747287053619,-450.0,0.00024657,2]
[361122848,1747287053628,-450.0,0.00024657,2]
[361122849,1747287053637,-450.0,0.00024657,2]
[361122850,1747287053646,-450.0,0.00024657,2]
[361122851,1747287053655,-450.0,0.00024657,2]
[361122852,1747287053665,-450.0,0.00024657,2]
[361122853,1747287053674,-403.40278933,0.00024657,2]
[361122854,1747287053683,-450.0,0.00024657,2]
[361122855,1747287053692,-450.0,0.00024657,2]
[361122856,1747287053702,-450.0,0.00024657,2]
[361122857,1747287053711,-214.01649776,0.00024657,2]
[361122858,1747287053720,-450.0,0.00024657,2]
[361122859,1747287053729,-450.0,0.00024657,2]
[361122860,1747287053739,-405.60115723,0.00024657,2]
[361122861,1747287053748,-450.0,0.00024657,2]
[361122862,1747287053757,-450.0,0.00024657,2]
[361122863,1747287053766,-450.0,0.00024657,2]
[361122864,1747287053775,-552.16128396,0.00024657,2]
[361122865,1747287053784,-450.0,0.00024657,2]
[361122866,1747287053794,-450.0,0.00024657,2]
[361122867,1747287053804,-450.0,0.00024657,2]
[361122868,1747287053813,-401.3471491,0.00024657,2]
[361122869,1747287053822,-450.0,0.00024657,2]
[361122870,1747287053832,-450.0,0.00024657,2]
[361122871,1747287053842,-407.32592892,0.00024657,2]
[361122872,1747287053853,-450.0,0.00024657,2]
[361122873,1747287053862,-400.52448619,0.00024657,2]
[361122874,1747287053873,-400.59882471,0.00024657,2]
[361122875,1747287053884,-450.0,0.00024657,2]
[361122876,1747287053893,-450.0,0.00024657,2]
[361122877,1747287053903,-401.4987925,0.00024657,2]
[361122878,1747287053912,-450.0,0.00024657,2]
[361122879,1747287053921,-450.0,0.00024657,2]
[361122880,1747287053931,-204.08226685,0.00024657,2]
[361122881,1747287053940,-450.0,0.00024657,2]
[361122882,1747287053949,-450.0,0.00024657,2]
[361122883,1747287053959,-450.0,0.00024657,2]
[361122884,1747287053968,-450.0,0.00024657,2]
[361122885,1747287053978,-400.0,0.00024657,2]
[361122886,1747287053988,-450.0,0.00024657,2]
[361122887,1747287053998,-401.1601865,0.00024657,2]
[361122888,1747287054007,-450.0,0.00024657,2]
[361122889,1747287054016,-450.0,0.00024657,2]
[361122890,1747287054026,-450.0,0.00024657,2]
[361122891,1747287054036,-320.20857139,0.00024657,2]
[361122892,1747287054045,-405.76619638,0.00024657,2]
[361122893,1747287054054,-450.0,0.00024657,2]
[361122894,1747287054063,-499.37744696,0.00024657,2]
[361122895,1747287054073,-450.0,0.00024657,2]
[361122896,1747287054082,-450.0,0.00024657,2]
[361122897,1747287054092,-450.0,0.00024657,2]
[361122898,1747287054102,-195.16317655,0.00024657,2]
[361122899,1747287054111,-516.75179927,0.00024657,2]
[361122900,1747287054121,-450.0,0.00024657,2]
[361122901,1747287054131,-450.0,0.00024657,2]
[361122902,1747287054140,-450.0,0.00024657,2]
[361122903,1747287054150,-450.0,0.00024657,2]
[361122904,1747287054159,-398.72327715,0.00024657,2]
[361122905,1747287054168,-450.0,0.00024657,2]
[361122906,1747287054178,-450.0,0.00024657,2]
[361122907,1747287054188,-450.0,0.00024657,2]
[361122908,1747287054197,-400.91451024,0.00024657,2]
[361122909,1747287054207,-400.89928046,0.00024657,2]
[361122910,1747287054216,-407.74949268,0.00024657,2]
[361122911,1747287054226,-450.0,0.00024657,2]
[361122912,1747287054235,-450.0,0.00024657,2]
[361122913,1747287054244,-450.0,0.00024657,2]
[361122914,1747287054254,-400.97609521,0.00024657,2]
[361122915,1747287054263,-400.53948181,0.00024657,2]
[361122916,1747287054273,-1759.34,0.00024657,2]
[361122917,1747287054283,-1759.34,0.00024657,2]
[361122918,1747287054292,-450.0,0.00024657,2]
[361122919,1747287054302,-1759.34,0.00024657,2]
[361122920,1747287054311,-300.0,0.00024657,2]
[361122921,1747287054321,-401.48875926,0.00024657,2]
[361122922,1747287054330,-402.01186613,0.00024657,2]
[361122923,1747287054339,-1759.34,0.00024657,2]
[361122924,1747287054348,-1759.34,0.00024657,2]
[361122925,1747287054357,-450.0,0.00024657,2]
[361122926,1747287054366,-1759.34,0.00024657,2]
[361122927,1747287054375,-1759.34,0.00024657,2]
[361122928,1747287054384,-1759.34,0.00024657,2]
[361122929,1747287054393,-1759.34,0.00024657,2]
[361122930,1747287054402,-1759.34,0.00024657,2]
[361122931,1747287054410,-450.0,0.00024657,2]
[361122932,1747287054419,-404.14050957,0.00024657,2]
[361122933,1747287054429,-1759.34,0.00024657,2]
[361122934,1747287054438,-1759.34,0.00024657,2]
[361122935,1747287054447,-1759.34,0.00024657,2]
[361122936,1747287054456,-450.0,0.00024657,2]
[361122937,1747287054466,-1759.34,0.00024657,2]
[361122938,1747287054475,-1759.34,0.00024657,2]
[361122939,1747287054484,-1759.34,0.00024657,2]
[361122940,1747287054493,-450.0,0.00024657,2]
[361122941,1747287054502,-1759.34,0.00024657,2]
[361122942,1747287054512,-1759.34,0.00024657,2]
[361122943,1747287054522,-400.25156246,0.00024657,2]
[361122944,1747287054531,-450.0,0.00024657,2]
[361122945,1747287054540,-1759.34,0.00024657,2]
[361122946,1747287054550,-401.97363187,0.00024657,2]
[361122947,1747287054559,-1759.34,0.00024657,2]
[361122948,1747287054568,-1759.34,0.00024657,2]
[361122949,1747287054577,-1759.34,0.00024657,2]
[361122950,1747287054586,-1759.34,0.00024657,2]
[361122951,1747287054595,-1759.43069739,0.00024657,2]
[361122952,1747287054604,-401.3838175,0.00024657,2]
[361122953,1747287054614,-450.0,0.00024657,2]
[361122954,1747287054623,-401.57699718,0.00024657,2]
[361122955,1747287054632,-450.0,0.00024657,2]
[361122956,1747287054642,-450.0,0.00024657,2]
[361122957,1747287054651,-450.0,0.00024657,2]
[361122958,1747287054660,-450.0,0.00024657,2]
[361122959,1747287054669,-450.0,0.00024657,2]
[361122960,1747287054678,-450.0,0.00024657,2]
[361122961,1747287054687,-450.0,0.00024657,2]
[361122962,1747287054697,-450.0,0.00024657,2]
[361122963,1747287054706,-450.0,0.00024657,2]
[361122964,1747287054715,-450.0,0.00024657,2]
[361122965,1747287054724,-450.0,0.00024657,2]
[361122966,1747287054734,-448.36412873,0.00024657,2]
[361122967,1747287054743,-450.0,0.00024657,2]
[361122968,1747287054752,-450.0,0.00024657,2]
[361122969,1747287054763,-401.08444501,0.00024657,2]
[361122970,1747287054772,-450.0,0.00024657,2]
[361122971,1747287054782,-402.65010271,0.00024657,2]
[361122972,1747287054791,-450.0,0.00024657,2]
[361122973,1747287054800,-450.0,0.00024657,2]
[361122974,1747287054809,-450.0,0.00024657,2]
[361122975,1747287054819,-450.0,0.00024657,2]
[361122976,1747287054828,-450.0,0.00024657,2]
[361122977,1747287054837,-450.0,0.00024657,2]
[361122978,1747287054846,-450.0,0.00024657,2]
[361122979,1747287054855,-509.58259274,0.00024657,2]
[361122980,1747287054864,-450.0,0.00024657,2]
[361122981,1747287054874,-450.0,0.00024657,2]
[361122982,1747287054884,-500.43603256,0.00024657,2]
[361122983,1747287054894,-450.0,0.00024657,2]
[361122984,1747287054902,-450.0,0.00024657,2]
[361122985,1747287054911,-486.09814407,0.00024657,2]
[361122986,1747287054921,-450.0,0.00024657,2]
[361122987,1747287054930,-401.34113592,0.00024657,2]
[361122988,1747287054940,-450.0,0.00024657,2]
[361122989,1747287054951,-409.02315553,0.00024657,2]
[361122990,1747287054961,-450.0,0.00024657,2]
[361122991,1747287054971,-450.0,0.00024657,2]
[361122992,1747287054983,-450.0,0.00024657,2]
[361122993,1747287054993,-450.0,0.00024657,2]
[361122994,1747287055003,-450.0,0.00024657,2]
[361122995,1747287055014,-401.63775207,0.00024657,2]
[361122996,1747287055025,-450.0,0.00024657,2]
[361122997,1747287055035,-450.0,0.00024657,2]
[361122998,1747287055046,-503.87742256,0.00024657,2]
[361122999,1747287055056,-450.0,0.00024657,2]
[361123000,1747287055066,-450.0,0.00024657,2]
[361123001,1747287055076,-450.0,0.00024657,2]
[361123002,1747287055196,-402.13872998,0.00024657,2]
[361123003,1747287055207,-403.64829231,0.00024657,2]
[361123004,1747287055217,-401.28251717,0.00024657,2]
[361123005,1747287055227,-403.84699663,0.00024657,2]
[361123006,1747287055238,-450.0,0.00024657,2]
[361123007,1747287055247,-483.56291942,0.00024657,2]
[361123008,1747287055258,-402.04607661,0.00024657,2]
[361123009,1747287055268,-450.0,0.00024657,2]
[361123010,1747287055277,-450.0,0.00024657,2]
[361123011,1747287055288,-402.08733713,0.00024657,2]
[361123012,1747287055298,-450.0,0.00024657,2]
[361123013,1747287055308,-450.0,0.00024657,2]
[361123014,1747287055318,-400.60979183,0.00024657,2]
[361123015,1747287055328,-450.0,0.00024657,2]
[361123016,1747287055338,-450.0,0.00024657,2]
[361123017,1747287055347,-400.92012363,0.00024657,2]
[361123018,1747287055357,-450.0,0.00024657,2]
[361123019,1747287055367,-478.87737622,0.00024657,2]
[361123020,1747287055376,-450.0,0.00024657,2]
[361123021,1747287055386,-450.0,0.00024657,2]
[361123022,1747287055396,-402.38233488,0.00024657,2]
[361123023,1747287055406,-400.91268128,0.00024657,2]
[361123024,1747287055416,-450.0,0.00024657,2]
[361123025,1747287055428,-450.0,0.00024657,2]
[361123026,1747287055438,-401.70777653,0.00024657,2]
[361123027,1747287055448,-450.0,0.00024657,2]
[361123028,1747287055457,-402.22366325,0.00024657,2]
[361123029,1747287055467,-450.0,0.00024657,2]
[361123030,1747287055477,-1003.30861329,0.00024657,2]
[361123031,1747287055487,-450.0,0.00024657,2]
[361123032,1747287055497,-277.27178343,0.00024657,2]
[361123033,1747287055507,-450.0,0.00024657,2]
[361123034,1747287055517,-206.73654446,0.00024657,2]
[361123035,1747287055527,-401.31290122,0.00024657,2]
[361123036,1747287055537,-402.91643551,0.00024657,2]
[361123037,1747287055547,-450.0,0.00024657,2]
[361123038,1747287055556,-403.13312777,0.00024657,2]
[361123039,1747287055566,-450.0,0.00024657,2]
[361123040,1747287055575,-450.0,0.00024657,2]
[361123041,1747287055585,-450.0,0.00024657,2]
[361123042,1747287055595,-450.0,0.00024657,2]
[361123043,1747287055605,-401.79667671,0.00024657,2]
[361123044,1747287055615,-450.0,0.00024657,2]
[361123045,1747287055625,-403.44347559,0.00024657,2]
[361123046,1747287055635,-506.35665012,0.00024657,2]
[361123047,1747287055644,-1194.37,0.00024657,2]
[361123048,1747287055654,-1194.37,0.00024657,2]
[361123049,1747287055663,-1194.37,0.00024657,2]
[361123050,1747287055673,-1194.37,0.00024657,2]
[361123051,1747287055683,-1194.37,0.00024657,2]
[361123052,1747287055692,-1194.37,0.00024657,2]
[361123053,1747287055702,-1194.37,0.00024657,2]
[361123054,1747287055712,-1194.37,0.00024657,2]
[361123055,1747287055723,-1194.37,0.00024657,2]
[361123056,1747287055733,-1194.37,0.00024657,2]
[361123057,1747287055742,-425.08583795,0.00024657,2]
[361123058,1747287055752,-1194.37,0.00024657,2]
[361123059,1747287055762,-1194.37,0.00024657,2]
[361123060,1747287055771,-1194.37,0.00024657,2]
[361123061,1747287055781,-450.0,0.00024657,2]
[361123062,1747287055791,-1194.37,0.00024657,2]
[361123063,1747287055801,-1194.37,0.00024657,2]
[361123064,1747287055811,-450.0,0.00024657,2]
[361123065,1747287055821,-1194.37,0.00024657,2]
[361123066,1747287055830,-450.0,0.00024657,2]
[361123067,1747287055840,-1194.37,0.00024657,2]
[361123068,1747287055850,-1194.37,0.00024657,2]
[361123069,1747287055859,-1194.37,0.00024657,2]
[361123070,1747287055869,-1194.37,0.00024657,2]
[361123071,1747287055879,-1194.37,0.00024657,2]
[361123072,1747287055888,-401.50317887,0.00024657,2]
[361123073,1747287055898,-1194.37,0.00024657,2]
[361123074,1747287055909,-1194.37,0.00024657,2]
[361123075,1747287055919,-450.0,0.00024657,2]
[361123076,1747287055929,-450.0,0.00024657,2]
[361123077,1747287055939,-1194.51243385,0.00024657,2]
[361123078,1747287055949,-404.49785513,0.00024657,2]
[361123079,1747287055959,-450.0,0.00024657,2]
[361123080,1747287055969,-402.55932573,0.00024657,2]
[361123081,1747287055979,-403.90594273,0.00024657,2]
[361123082,1747287055988,-450.0,0.00024657,2]
[361123083,1747287055999,-401.23941587,0.00024657,2]
[361123084,1747287056008,-450.0,0.00024657,2]
[361123085,1747287056019,-401.38747886,0.00024657,2]
[361123086,1747287056028,-400.62566055,0.00024657,2]
[361123087,1747287056038,-450.0,0.00024657,2]
[361123088,1747287056047,-402.05383914,0.00024657,2]
[361123089,1747287056057,-401.9682729,0.00024657,2]
[361123090,1747287056066,-466.4456149,0.00024657,2]
[361123091,1747287056075,-450.0,0.00024657,2]
[361123092,1747287056085,-400.43357852,0.00024657,2]
[361123093,1747287056094,-401.4289679,0.00024657,2]
[361123094,1747287056104,-450.0,0.00024657,2]
[361123095,1747287056112,-400.7588598,0.00024657,2]
[361123096,1747287056122,-400.68938481,0.00024657,2]
[361123097,1747287056131,-450.0,0.00024657,2]
[361123098,1747287056141,-403.36335001,0.00024657,2]
[361123099,1747287056150,-450.0,0.00024657,2]
[361123100,1747287056163,-2001.97286395,0.00024657,2]
[361123101,1747287056173,-403.14642579,0.00024657,2]
[361123102,1747287056183,-402.0455979,0.00024657,2]
[361123103,1747287056192,-450.0,0.00024657,2]
[361123104,1747287056203,-450.0,0.00024657,2]
[361123105,1747287056212,-450.0,0.00024657,2]
[361123106,1747287056223,-450.0,0.00024657,2]
[361123107,1747287056233,-402.31935392,0.00024657,2]
[361123108,1747287056243,-162.33793996,0.00024657,2]
[361123109,1747287056252,-450.0,0.00024657,2]
[361123110,1747287056262,-450.0,0.00024657,2]
[361123111,1747287056272,-450.0,0.00024657,2]
[361123112,1747287056281,-400.51913425,0.00024657,2]
[361123113,1747287056291,-464.49374381,0.00024657,2]
[361123114,1747287056300,-402.00294776,0.00024657,2]
[361123115,1747287056310,-594.68687416,0.00024657,2]
[361123116,1747287056319,-405.08729327,0.00024657,2]
[361123117,1747287056328,-402.00570503,0.00024657,2]
[361123118,1747287056338,-450.0,0.00024657,2]
[361123119,1747287056347,-284.59167925,0.00024657,2]
[361123120,1747287056357,-386.5868567,0.00024657,2]
[361123121,1747287056367,-401.9931358,0.00024657,2]
[361123122,1747287056376,-401.31931123,0.00024657,2]
[361123123,1747287056386,-401.71292258,0.00024657,2]
[361123124,1747287056395,-405.25800758,0.00024657,2]
[361123125,1747287056405,-400.50565323,0.00024657,2]
[361123126,1747287056414,-450.0,0.00024657,2]
[361123127,1747287056424,-365.57899307,0.00024657,2]
[361123128,1747287056433,-401.75283024,0.00024657,2]
[361123129,1747287056444,-402.00312491,0.00024657,2]
[361123130,1747287056454,-401.95841171,0.00024657,2]
[361123131,1747287056464,-401.66478613,0.00024657,2]
[361123132,1747287056474,-400.72240641,0.00024657,2]
[361123133,1747287056483,-450.0,0.00024657,2]
[361123134,1747287056492,-408.82001468,0.00024657,2]
[361123135,1747287056502,-450.0,0.00024657,2]
[361123136,1747287056512,-450.0,0.00024657,2]
[361123137,1747287056522,-450.0,0.00024657,2]
[361123138,1747287056531,-400.98783974,0.00024657,2]
[361123139,1747287056541,-516.03561779,0.00024657,2]
[361123140,1747287056551,-401.28736625,0.00024657,2]
[361123141,1747287056561,-402.89878652,0.00024657,2]
[361123142,1747287056570,-400.86206516,0.00024657,2]
[361123143,1747287056580,-402.01378937,0.00024657,2]
[361123144,1747287056590,-400.94702032,0.00024657,2]
[361123145,1747287056600,-402.33354129,0.00024657,2]
[361123146,1747287056609,-472.34929696,0.00024657,2]
[361123147,1747287056619,-400.0,0.00024657,2]
[361123148,1747287056628,-450.0,0.00024657,2]
[361123149,1747287056637,-579.00308725,0.00024657,2]
[361123150,1747287056648,-400.42782848,0.00024657,2]
[361123151,1747287056657,-235.076269,0.00024657,2]
[361123152,1747287056666,-401.27023416,0.00024657,2]
[361123153,1747287056676,-450.0,0.00024657,2]
[361123154,1747287056685,-450.0,0.00024657,2]
[361123155,1747287056695,-401.473301,0.00024657,2]
[361123156,1747287056707,-403.03173321,0.00024657,2]
[361123157,1747287056716,-450.0,0.00024657,2]
[361123158,1747287056726,-400.63538985,0.00024657,2]
[361123159,1747287056736,-407.34241287,0.00024657,2]
[361123160,1747287056746,-450.0,0.00024657,2]
[361123161,1747287056755,-450.0,0.00024657,2]
[361123162,1747287056765,-450.0,0.00024657,2]
[361123163,1747287056774,-496.09831771,0.00024657,2]
[361123164,1747287056783,-400.51275651,0.00024657,2]
[361123165,1747287056793,-406.08843622,0.00024657,2]
[361123166,1747287056803,-450.0,0.00024657,2]
[361123167,1747287056813,-403.80205785,0.00024657,2]